lending/lending_fUSD_20250131
["ID","MTS","AMOUNT","RATE_DAILY","PERIOD"]
[351043240,1738306243526,-3227.95,0.00019178,2]
[351043241,1738306243535,-500.0,0.00019178,2]
[351043242,1738306243544,-698.07,0.00019178,2]
[351043243,1738306243554,-500.0,0.00019178,2]
[351043244,1738306243563,-1637.86,0.00019178,2]
[351043245,1738306243573,-1085.18,0.00019178,2]
[351043246,1738306243582,-636.13,0.00019178,2]
[351043247,1738306243592,-662.78,0.00019178,2]
[351043248,1738306243601,-6654.01,0.00019178,2]
[351043249,1738306243610,-500.0,0.00019178,2]
[351043250,1738306243619,-4419.8,0.00019178,2]
[351043251,1738306243629,-500.0,0.00019178,2]
[351043252,1738306243639,-2914.04,0.00019178,2]
[351043254,1738306243650,-500.0,0.00019178,2]
[351043256,1738306243659,-1271.68,0.00019178,2]
[351043257,1738306243673,-922.13,0.00019178,2]
[351043258,1738306243683,-500.0,0.00019178,2]
[351043259,1738306243693,-500.0,0.00019178,2]
[351043260,1738306243702,-535.94,0.00019178,2]
[351043261,1738306243712,-795.93,0.00019178,2]
[351043262,1738306243722,-674.93,0.00019178,2]
[351043263,1738306243731,-7050.63,0.00019178,2]
[351043264,1738306243741,-2874.0,0.00019178,2]
[351043265,1738306243750,-1253.83,0.00019178,2]
[351043266,1738306243759,-878.83,0.00019178,2]
[351043267,1738306243769,-4857.43,0.00019178,2]
[351043268,1738306243779,-2490.49,0.00019178,2]
[351043269,1738306243789,-1106.34,0.00019178,2]
[351043270,1738306243798,-848.25,0.00019178,2]
[351043271,1738306243808,-500.0,0.00019178,2]
[351043272,1738306243818,-5756.47,0.00019178,2]
[351043273,1738306243827,-789.12,0.00019178,2]
[351043274,1738306243837,-2234.81,0.00019178,2]
[351043275,1738306243846,-6250.12,0.00019178,2]
[351043276,1738306243855,-500.0,0.00019178,2]
[351043277,1738306243865,-500.0,0.00019178,2]
[351043278,1738306243874,-500.0,0.00019178,2]
[351043279,1738306243884,-709.82,0.00019178,2]
[351043280,1738306243893,-500.0,0.00019178,2]
[351043281,1738306243903,-640.66,0.00019178,2]
[351043282,1738306243912,-404.78717715,0.00019178,2]
[351043283,1738306243922,-3870.78,0.00019178,2]
[351043284,1738306243932,-2292.42,0.00019178,2]
[351043285,1738306243942,-3696.7,0.00019178,2]
[351043286,1738306243952,-500.0,0.00019178,2]
[351043287,1738306243961,-1183.26,0.00019178,2]
[351043288,1738306243971,-500.0,0.00019178,2]
[351043289,1738306243980,-6297.68,0.00019178,2]
[351043290,1738306243990,-500.0,0.00019178,2]
[351043292,1738306244004,-500.0,0.00019178,2]
[351043294,1738306244014,-500.0,0.00019178,2]
[351043296,1738306244024,-503.64,0.00019178,2]
[351043298,1738306244034,-1370.04,0.00019178,2]
[351043300,1738306244043,-1253.5,0.00019178,2]
[351043302,1738306244052,-500.0,0.00019178,2]
[351043304,1738306244062,-5825.14,0.00019178,2]
[351043306,1738306244074,-2653.46,0.00019178,2]
[351043308,1738306244084,-500.0,0.00019178,2]
[351043310,1738306244094,-3929.43,0.00019178,2]
[351043312,1738306244103,-1666.5,0.00019178,2]
[351043314,1738306244113,-500.0,0.00019178,2]
[351043316,1738306244122,-2750.04,0.00019178,2]
[351043318,1738306244131,-500.0,0.00019178,2]
[351043320,1738306244141,-500.0,0.00019178,2]
[351043322,1738306244151,-2244.68,0.00019178,2]
[351043324,1738306244160,-1164.08,0.00019178,2]
[351043326,1738306244170,-2391.97,0.00019178,2]
[351043328,1738306244180,-500.0,0.00019178,2]
[351043330,1738306244190,-3028.69,0.00019178,2]
[351043332,1738306244200,-3515.3,0.00019178,2]
[351043334,1738306244209,-2135.03,0.00019178,2]
[351043336,1738306244219,-3198.65,0.00019178,2]
[351043338,1738306244228,-500.0,0.00019178,2]
[351043340,1738306244237,-1116.45,0.00019178,2]
[351043342,1738306244247,-1464.88,0.00019178,2]
[351043343,1738306244256,-500.0,0.00019178,2]
[351043345,1738306244265,-732.68,0.00019178,2]
[351043347,1738306244274,-721.78,0.00019178,2]
[351043349,1738306244283,-500.0,0.00019178,2]
[351043351,1738306244293,-1706.56,0.00019178,2]
[351043353,1738306244303,-1804.53,0.00019178,2]
[351043355,1738306244314,-7789.26,0.00019178,2]
[351043357,1738306244323,-500.0,0.00019178,2]
[351043359,1738306244333,-816.3,0.00019178,2]
[351043361,1738306244342,-1185.11,0.00019178,2]
[351043363,1738306244352,-500.0,0.00019178,2]
[351043365,1738306244361,-500.0,0.00019178,2]
[351043367,1738306244370,-2669.85,0.00019178,2]
[351043369,1738306244379,-524.47680923,0.00019178,2]
[351043371,1738306244388,-500.0,0.00019178,2]
[351043373,1738306244397,-1265.83,0.00019178,2]
[351043375,1738306244407,-1014.36,0.00019178,2]
[351043377,1738306244416,-532.0,0.00019178,2]
[351043379,1738306244426,-2661.46,0.00019178,2]
[351043381,1738306244435,-500.0,0.00019178,2]
[351043383,1738306244444,-5046.06,0.00019178,2]
[351043385,1738306244454,-878.62,0.00019178,2]
[351043387,1738306244463,-500.0,0.00019178,2]
[351043389,1738306244473,-500.0,0.00019178,2]
[351043391,1738306244482,-2962.42,0.00019178,2]
[351043393,1738306244491,-915.16,0.00019178,2]
[351043395,1738306244500,-512.9629888,0.00019178,2]
[351043397,1738306244509,-3780.57,0.00019178,2]
[351043399,1738306244519,-1587.96,0.00019178,2]
[351043401,1738306244528,-1200.49,0.00019178,9]
[351043403,1738306244539,-1627.91,0.00019178,2]
[351043405,1738306244548,-500.0,0.00019178,2]
[351043407,1738306244558,-500.0,0.00019178,2]
[351043409,1738306244567,-150.823464,0.00019178,2]
[351043411,1738306244576,-760.33,0.00019178,2]
[351043413,1738306244586,-925.73,0.00019178,2]
[351043415,1738306244597,-1648.54,0.00019178,2]
[351043417,1738306244606,-1648.91,0.00019178,2]
[351043419,1738306244616,-500.0,0.00019178,2]
[351043421,1738306244626,-981.99,0.00019178,2]
[351043423,1738306244637,-500.0,0.00019178,2]
[351043425,1738306244646,-500.0,0.00019178,2]
[351043427,1738306244656,-500.0,0.00019178,2]
[351043429,1738306244665,-1292.12,0.00019178,2]
[351043431,1738306244674,-1799.13,0.00019178,2]
[351043433,1738306244684,-776.44,0.00019178,2]
[351043435,1738306244696,-2207.59,0.00019178,2]
[351043437,1738306244705,-500.0,0.00019178,2]
[351043439,1738306244715,-559.42,0.00019178,2]
[351043441,1738306244725,-1741.92,0.00019178,2]
[351043443,1738306244735,-1064.84,0.00019178,2]
[351043445,1738306244745,-500.0,0.00019178,2]
[351043447,1738306244755,-3067.11,0.00019178,2]
[351043449,1738306244765,-609.2,0.00019178,2]
[351043451,1738306244775,-4674.57,0.00019178,2]
[351043453,1738306244784,-686.33,0.00019178,2]
[351043455,1738306244793,-500.0,0.00019178,2]
[351043457,1738306244802,-2396.66,0.00019178,2]
[351043459,1738306244812,-905.59,0.00019178,2]
[351043461,1738306244822,-500.0,0.00019178,2]
[351043463,1738306244832,-500.0,0.00019178,2]
[351043465,1738306244841,-673.47,0.00019178,2]
[351043467,1738306244851,-150.52,0.00019178,2]
[351043469,1738306244861,-43225.09774586,0.00019178,3]
[351043471,1738306244871,-200.0,0.00019179,3]
[351043473,1738306244881,-3409.87006042,0.00019182,3]
[351043474,1738306244890,-390.7124836,0.00019187,3]
[351043475,1738306244899,-4241.35558675,0.00019196,3]
[351043476,1738306244909,-4308.87172391,0.00019196,2]
[351043477,1738306244919,-160.961593,0.00019215,2]
[351043478,1738306244928,-245.57310874,0.00019215,2]
[351043479,1738306244938,-568.0,0.00019236,2]
[351043480,1738306244947,-1867.0,0.00019236,2]
[351043481,1738306244956,-2952.0,0.00019236,2]
[351043482,1738306244966,-907.0,0.00019236,2]
[351043483,1738306244976,-1263.0,0.00019236,2]
[351043484,1738306244985,-782.0,0.00019236,2]
[351043485,1738306244996,-538.0,0.00019236,2]
[351043486,1738306245007,-150.0,0.00019236,2]
[351043487,1738306245017,-1329.312,0.00019236,2]
[351043488,1738306245027,-150.0,0.00019236,2]
[351043489,1738306245037,-150.0,0.00019236,2]
[351043490,1738306245047,-500.0,0.00019262,2]
[351043491,1738306245057,-768.34,0.00019313,3]
[351043492,1738306245068,-768.34,0.00019314,3]
[351043493,1738306245081,-4308.87172391,0.00019314,2]
[351043494,1738306245092,-500.0,0.00019315,3]
[351043495,1738306245101,-500.0,0.00019315,3]
[351043496,1738306245112,-500.0,0.00019315,3]
[351043497,1738306245122,-500.0,0.00019315,3]
[351043498,1738306245131,-500.0,0.00019315,3]
[351043499,1738306245141,-500.0,0.00019315,3]
[351043500,1738306245151,-500.0,0.00019315,3]
[351043501,1738306245160,-556.70519754,0.00019315,3]
[351043502,1738306245171,-500.0,0.00019315,3]
[351043503,1738306245181,-503.15177996,0.00019315,3]
[351043504,1738306245190,-500.0,0.00019315,3]
[351043505,1738306245200,-500.0,0.00019315,3]
[351043506,1738306245210,-500.0,0.00019315,3]
[351043507,1738306245219,-500.0,0.00019315,3]
[351043508,1738306245230,-501.37033738,0.00019315,3]
[351043509,1738306245240,-500.0,0.00019315,3]
[351043510,1738306245250,-500.0,0.00019315,3]
[351043511,1738306245259,-500.0,0.00019315,3]
[351043512,1738306245269,-500.0,0.00019315,3]
[351043513,1738306245279,-500.0,0.00019315,3]
[351043514,1738306245289,-500.0,0.00019315,3]
[351043515,1738306245299,-500.0,0.00019315,3]
[351043516,1738306245308,-618.9,0.00019315,3]
[351043517,1738306245318,-500.0,0.00019315,3]
[351043518,1738306245378,-500.0,0.00019315,3]
[351043519,1738306245388,-500.0,0.00019315,3]
[351043520,1738306245398,-500.0,0.00019315,3]
[351043521,1738306245407,-500.0,0.00019315,3]
[351043522,1738306245417,-500.0,0.00019315,3]
[351043523,1738306245427,-500.0,0.00019315,3]
[351043524,1738306245436,-602.48,0.00019315,3]
[351043525,1738306245447,-839.47,0.00019315,3]
[351043526,1738306245457,-500.0,0.00019315,3]
[351043527,1738306245466,-504.54,0.00019315,3]
[351043528,1738306245476,-500.0,0.00019315,3]
[351043529,1738306245485,-500.0,0.00019315,3]
[351043530,1738306245495,-524.85,0.00019315,3]
[351043531,1738306245504,-593.95,0.00019315,3]
[351043532,1738306245514,-500.0,0.00019315,3]
[351043533,1738306245522,-500.0,0.00019315,3]
[351043534,1738306245532,-500.0,0.00019315,3]
[351043535,1738306245542,-500.0,0.00019315,3]
[351043536,1738306245552,-2153.056468,0.00019315,3]
[351043537,1738306245561,-832.59,0.00019315,3]
[351043538,1738306245570,-500.0,0.00019315,3]
[351043539,1738306245580,-500.0,0.00019315,3]
[351043540,1738306245589,-906.17,0.00019315,3]
[351043541,1738306245598,-516.68968731,0.00019315,3]
[351043542,1738306245608,-500.0,0.00019315,3]
[351043543,1738306245617,-500.0,0.00019315,3]
[351043544,1738306245626,-500.0,0.00019315,3]
[351043545,1738306245636,-500.0,0.00019315,3]
[351043546,1738306245645,-650.25,0.00019315,3]
[351043547,1738306245655,-500.0,0.00019315,3]
[351043548,1738306245664,-1066.56,0.00019315,3]
[351043549,1738306245673,-1499.477048,0.00019315,3]
[351043550,1738306245683,-500.0,0.00019315,3]
[351043551,1738306245693,-500.0,0.00019315,3]
[351043552,1738306245702,-500.0,0.00019315,3]
[351043553,1738306245712,-500.0,0.00019315,3]
[351043554,1738306245721,-500.0,0.00019315,3]
[351043555,1738306245730,-500.0,0.00019315,3]
[351043556,1738306245739,-500.0,0.00019315,3]
[351043557,1738306245749,-500.0,0.00019315,3]
[351043558,1738306245759,-717.04,0.00019315,3]
[351043559,1738306245768,-500.0,0.00019315,3]
[351043560,1738306245777,-500.0,0.00019315,3]
[351043561,1738306245786,-500.0,0.00019315,3]
[351043562,1738306245795,-500.0,0.00019315,3]
[351043563,1738306245806,-500.0,0.00019315,3]
[351043564,1738306245816,-500.0,0.00019315,3]
[351043565,1738306245826,-500.0,0.00019315,3]
[351043566,1738306245835,-634.07,0.00019315,3]
[351043567,1738306245844,-975.34,0.00019315,3]
[351043568,1738306245854,-500.0,0.00019315,3]
[351043569,1738306245863,-242.0321683,0.00019315,3]
[351043570,1738306245874,-500.0,0.00019315,3]
[351043571,1738306245883,-500.0,0.00019315,3]
[351043572,1738306245892,-500.0,0.00019315,3]
[351043573,1738306245902,-500.0,0.00019315,3]
[351043574,1738306245911,-500.0,0.00019315,3]
[351043575,1738306245920,-666.34,0.00019315,3]
[351043576,1738306245930,-678.47,0.00019315,3]
[351043577,1738306245939,-662.92,0.00019315,3]
[351043578,1738306245948,-500.0,0.00019315,3]
[351043579,1738306245958,-500.0,0.00019315,3]
[351043580,1738306245967,-500.0,0.00019315,3]
[351043581,1738306245976,-702.33,0.00019315,3]
[351043582,1738306245986,-1117.45,0.00019315,3]
[351043583,1738306245997,-604.08,0.00019315,3]
[351043584,1738306246006,-500.0,0.00019315,3]
[351043585,1738306246016,-1293.05,0.00019315,3]
[351043586,1738306246025,-542.25,0.00019315,3]
[351043588,1738306246035,-960.27,0.00019315,3]
[351043589,1738306246044,-500.0,0.00019315,3]
[351043590,1738306246053,-500.0,0.00019315,3]
[351043591,1738306246063,-568.51,0.00019315,3]
[351043592,1738306246072,-718.36,0.00019315,3]
[351043593,1738306246081,-500.0,0.00019315,3]
[351043594,1738306246091,-1056.78,0.00019315,3]
[351043595,1738306246100,-575.16344127,0.00019315,3]
[351043596,1738306246109,-500.0,0.00019315,3]
[351043597,1738306246118,-581.44,0.00019315,3]
[351043598,1738306246127,-678.95,0.00019315,3]
[351043599,1738306246136,-500.0,0.00019315,3]
[351043600,1738306246146,-500.0,0.00019315,3]
[351043601,1738306246155,-500.0,0.00019315,3]
[351043603,1738306246165,-500.0,0.00019315,3]
[351043604,1738306246174,-859.88,0.00019315,3]
[351043605,1738306246183,-500.0,0.00019315,3]
[351043606,1738306246193,-500.0,0.00019315,3]
[351043607,1738306246203,-1253.69,0.00019315,3]
[351043608,1738306246212,-500.0,0.00019315,3]
[351043609,1738306246221,-500.0,0.00019315,3]
[351043610,1738306246230,-500.0,0.00019315,3]
[351043611,1738306246240,-500.0,0.00019315,3]
[351043612,1738306246250,-709.31,0.00019315,3]
[351043613,1738306246259,-500.0,0.00019315,3]
[351043614,1738306246268,-592.15,0.00019315,3]
[351043615,1738306246277,-500.0,0.00019315,3]
[351043616,1738306246287,-500.0,0.00019315,3]
[351043618,1738306246296,-500.0,0.00019315,3]
[351043619,1738306246305,-616.48,0.00019315,3]
[351043621,1738306246314,-500.0,0.00019315,3]
[351043623,1738306246324,-500.0,0.00019315,3]
[351043625,1738306246334,-1153.93,0.00019315,3]
[351043627,1738306246343,-536.54,0.00019315,3]
[351043628,1738306246352,-560.68,0.00019315,3]
[351043629,1738306246361,-707.1,0.00019315,3]
[351043630,1738306246370,-500.0,0.00019315,3]
[351043631,1738306246379,-839.24,0.00019315,3]
[351043632,1738306246388,-500.0,0.00019315,3]
[351043633,1738306246397,-500.0,0.00019315,3]
[351043634,1738306246406,-500.0,0.00019315,3]
[351043635,1738306246415,-500.0,0.00019315,3]
[351043636,1738306246425,-500.0,0.00019315,3]
[351043637,1738306246435,-728.4,0.00019315,3]
[351043638,1738306246445,-1433.98,0.00019315,3]
[351043639,1738306246455,-536.85,0.00019315,3]
[351043640,1738306246464,-500.0,0.00019315,3]
[351043641,1738306246473,-997.28,0.00019315,3]
[351043642,1738306246489,-1167.42,0.00019315,3]
[351043643,1738306246502,-500.0,0.00019315,3]
[351043644,1738306246512,-500.0,0.00019315,3]
[351043645,1738306246521,-500.0,0.00019315,3]
[351043646,1738306246532,-628.24,0.00019315,3]
[351043647,1738306246542,-1006.28,0.00019315,3]
[351043648,1738306246551,-500.0,0.00019315,3]
[351043649,1738306246561,-500.0,0.00019315,3]
[351043650,1738306246571,-1033.67,0.00019315,3]
[351043652,1738306246580,-501.39,0.00019315,3]
[351043653,1738306246590,-500.0,0.00019315,3]
[351043654,1738306246600,-500.0,0.00019315,3]
[351043655,1738306246609,-500.0,0.00019315,3]
[351043656,1738306246618,-500.0,0.00019315,3]
[351043658,1738306246628,-500.0,0.00019315,3]
[351043660,1738306246637,-500.0,0.00019315,3]
[351043662,1738306246646,-500.0,0.00019315,3]
[351043664,1738306246655,-541.07,0.00019315,3]
[351043665,1738306246665,-1146.06,0.00019315,3]
[351043667,1738306246674,-500.0,0.00019315,3]
[351043669,1738306246684,-322.20613738,0.00019315,3]
[351043671,1738306246694,-500.0,0.00019315,3]
[351043674,1738306246704,-500.0,0.00019315,3]
[351043677,1738306246713,-415.56183885,0.00019315,3]
[351043680,1738306246722,-480.11263437,0.00019315,3]
[351043683,1738306246731,-538.76,0.00019315,3]
[351043685,1738306246741,-500.0,0.00019315,3]
[351043688,1738306246750,-500.0,0.00019315,3]
[351043691,1738306246760,-629.83,0.00019315,3]
[351043694,1738306246769,-500.0,0.00019315,3]
[351043697,1738306246779,-150.671323,0.00019315,3]
[351043700,1738306246789,-500.0,0.00019315,3]
[351043703,1738306246799,-500.0,0.00019315,3]
[351043706,1738306246809,-563.8,0.00019315,3]
[351043709,1738306246818,-500.0,0.00019315,3]
[351043712,1738306246827,-612.23,0.00019315,3]
[351043714,1738306246836,-500.0,0.00019315,3]
[351043716,1738306246846,-500.0,0.00019315,3]
[351043718,1738306246855,-500.0,0.00019315,3]
[351043720,1738306246864,-1133.72,0.00019315,3]
[351043722,1738306246874,-500.0,0.00019315,3]
[351043723,1738306246883,-500.0,0.00019315,3]
[351043724,1738306246892,-728.69,0.00019315,3]
[351043725,1738306246901,-500.0,0.00019315,3]
[351043726,1738306246911,-1066.0,0.00019315,3]
[351043727,1738306246920,-1104.72,0.00019315,3]
[351043728,1738306246929,-520.59570586,0.00019315,3]
[351043729,1738306246939,-502.71,0.00019315,3]
[351043730,1738306246948,-806.0,0.00019315,3]
[351043731,1738306246958,-500.0,0.00019315,3]
[351043732,1738306246967,-500.0,0.00019315,3]
[351043733,1738306246977,-500.0,0.00019315,3]
[351043734,1738306246987,-500.0,0.00019315,3]
[351043735,1738306246998,-500.0,0.00019315,3]
[351043736,1738306247008,-516.74,0.00019315,3]
[351043737,1738306247018,-500.0,0.00019315,3]
[351043738,1738306247029,-1115.4,0.00019315,3]
[351043739,1738306247039,-500.0,0.00019315,3]
[351043740,1738306247048,-726.75,0.00019315,3]
[351043741,1738306247058,-755.18,0.00019315,3]
[351043742,1738306247067,-500.0,0.00019315,3]
[351043743,1738306247078,-618.65,0.00019315,3]
[351043744,1738306247087,-500.0,0.00019315,3]
[351043745,1738306247096,-917.2,0.00019315,3]
[351043746,1738306247106,-500.0,0.00019315,3]
[351043747,1738306247115,-847.88,0.00019315,3]
[351043748,1738306247125,-1239.48,0.00019315,3]
[351043749,1738306247135,-500.0,0.00019315,3]
[351043750,1738306247144,-500.0,0.00019315,3]
[351043751,1738306247154,-633.32,0.00019315,3]
[351043752,1738306247164,-500.0,0.00019315,3]
[351043753,1738306247174,-1824.23,0.00019315,3]
[351043754,1738306247184,-500.0,0.00019315,3]
[351043755,1738306247194,-500.0,0.00019315,3]
[351043756,1738306247203,-500.0,0.00019315,3]
[351043757,1738306247213,-500.0,0.00019315,3]
[351043758,1738306247222,-500.0,0.00019315,3]
[351043759,1738306247232,-500.0,0.00019315,3]
[351043760,1738306247242,-500.0,0.00019315,3]
[351043761,1738306247251,-821.59,0.00019315,3]
[351043762,1738306247260,-500.0,0.00019315,3]
[351043763,1738306247269,-500.0,0.00019315,3]
[351043764,1738306247278,-500.0,0.00019315,3]
[351043765,1738306247287,-1462.22,0.00019315,3]
[351043766,1738306247296,-500.0,0.00019315,3]
[351043767,1738306247306,-500.0,0.00019315,3]
[351043768,1738306247315,-815.19,0.00019315,3]
[351043769,1738306247325,-500.0,0.00019315,3]
[351043770,1738306247334,-500.0,0.00019315,3]
[351043771,1738306247345,-500.0,0.00019315,3]
[351043772,1738306247354,-500.0,0.00019315,3]
[351043773,1738306247363,-500.0,0.00019315,3]
[351043774,1738306247375,-720.68,0.00019315,3]
[351043775,1738306247384,-500.0,0.00019315,3]
[351043776,1738306247394,-1052.43,0.00019315,3]
[351043777,1738306247403,-500.0,0.00019315,3]
[351043778,1738306247412,-500.0,0.00019315,3]
[351043779,1738306247421,-500.0,0.00019315,3]
[351043780,1738306247431,-519.86,0.00019315,3]
[351043781,1738306247440,-500.0,0.00019315,3]
[351043782,1738306247450,-500.0,0.00019315,3]
[351043783,1738306247459,-762.44,0.00019315,3]
[351043784,1738306247468,-500.0,0.00019315,3]
[351043785,1738306247477,-500.0,0.00019315,3]
[351043786,1738306247487,-500.0,0.00019315,3]
[351043787,1738306247496,-500.0,0.00019315,3]
[351043788,1738306247505,-500.0,0.00019315,3]
[351043789,1738306247514,-500.0,0.00019315,3]
[351043790,1738306247524,-500.0,0.00019315,3]
[351043791,1738306247533,-596.94,0.00019315,3]
[351043792,1738306247543,-500.0,0.00019315,3]
[351043793,1738306247552,-870.85,0.00019315,3]
[351043794,1738306247562,-500.0,0.00019315,3]
[351043795,1738306247571,-3120.26,0.00019315,3]
[351043796,1738306247580,-514.66,0.00019315,3]
[351043797,1738306247590,-500.0,0.00019315,3]
[351043798,1738306247599,-500.0,0.00019315,3]
[351043799,1738306247608,-500.0,0.00019315,3]
[351043800,1738306247618,-500.0,0.00019315,3]
[351043801,1738306247627,-500.0,0.00019315,3]
[351043802,1738306247636,-1059.42,0.00019315,3]
[351043803,1738306247646,-955.99,0.00019315,3]
[351043804,1738306247655,-920.05,0.00019315,3]
[351043805,1738306247665,-696.01,0.00019315,2]
[351043806,1738306247674,-500.0,0.00019315,3]
[351043807,1738306247683,-500.0,0.00019315,3]
[351043808,1738306247692,-500.0,0.00019315,3]
[351043809,1738306247701,-1737.45,0.00019315,3]
[351043810,1738306247711,-883.16,0.00019315,3]
[351043811,1738306247720,-500.0,0.00019315,3]
[351043812,1738306247729,-500.0,0.00019315,3]
[351043813,1738306247738,-2134.12,0.00019315,3]
[351043814,1738306247747,-500.0,0.00019315,3]
[351043815,1738306247756,-500.0,0.00019315,3]
[351043816,1738306247764,-839.72,0.00019315,3]
[351043817,1738306247774,-1169.41,0.00019315,3]
[351043818,1738306247783,-1385.09,0.00019315,3]
[351043819,1738306247791,-1394.44,0.00019315,3]
[351043820,1738306247800,-500.0,0.00019315,3]
[351043821,1738306247809,-500.0,0.00019315,3]
[351043822,1738306247819,-556.72736141,0.00019315,3]
[351043823,1738306247828,-3348.08,0.00019315,3]
[351043824,1738306247837,-500.0,0.00019315,3]
[351043825,1738306247847,-500.0,0.00019315,3]
[351043826,1738306247856,-924.15,0.00019315,3]
[351043827,1738306247865,-1127.44,0.00019315,3]
[351043828,1738306247874,-674.08,0.00019315,3]
[351043829,1738306247884,-3250.85,0.00019315,3]
[351043830,1738306247893,-500.0,0.00019315,3]
[351043831,1738306247903,-1133.24,0.00019315,3]
[351043832,1738306247912,-1845.5,0.00019315,3]
[351043833,1738306247921,-500.0,0.00019315,3]
[351043834,1738306247930,-1954.11,0.00019315,3]
[351043835,1738306247939,-500.0,0.00019315,3]
[351043836,1738306247950,-500.0,0.00019315,3]
[351043837,1738306247959,-500.0,0.00019315,3]
[351043838,1738306247968,-500.0,0.00019315,3]
[351043839,1738306247978,-500.0,0.00019315,3]
[351043840,1738306247987,-645.35,0.00019315,3]
[351043841,1738306247997,-942.8,0.00019315,3]
[351043842,1738306248007,-500.0,0.00019315,3]
[351043843,1738306248021,-500.0,0.00019315,3]
[351043844,1738306248031,-4610.94,0.00019315,3]
[351043845,1738306248042,-6387.1,0.00019315,3]
[351043846,1738306248051,-594.96,0.00019315,3]
[351043847,1738306248060,-500.0,0.00019315,3]
[351043848,1738306248070,-500.0,0.00019315,3]
[351043849,1738306248081,-766.14,0.00019315,3]
[351043850,1738306248090,-500.0,0.00019315,3]
[351043851,1738306248100,-519.2,0.00019315,3]
[351043852,1738306248110,-582.14,0.00019315,3]
[351043853,1738306248119,-11987.44,0.00019315,3]
[351043854,1738306248129,-1269.84,0.00019315,3]
[351043855,1738306248138,-500.0,0.00019315,3]
[351043856,1738306248147,-1367.61,0.00019315,3]
[351043857,1738306248157,-937.78,0.00019315,3]
[351043858,1738306248167,-540.26,0.00019315,3]
[351043859,1738306248177,-1640.43,0.00019315,3]
[351043860,1738306248186,-1981.83,0.00019315,3]
[351043861,1738306248196,-8948.91,0.00019315,3]
[351043862,1738306248205,-2567.08,0.00019315,3]
[351043863,1738306248215,-631.98,0.00019315,3]
[351043864,1738306248224,-750.68,0.00019315,3]
[351043865,1738306248233,-500.0,0.00019315,3]
[351043866,1738306248243,-2616.13,0.00019315,3]
[351043867,1738306248252,-1071.39,0.00019315,3]
[351043868,1738306248261,-500.0,0.00019315,3]
[351043869,1738306248271,-500.0,0.00019315,3]
[351043870,1738306248280,-1260.83,0.00019315,3]
[351043871,1738306248290,-500.0,0.00019315,3]
[351043872,1738306248299,-2220.27,0.00019315,3]
[351043873,1738306248309,-500.0,0.00019315,3]
[351043874,1738306248319,-500.0,0.00019315,3]
[351043876,1738306248328,-500.0,0.00019315,3]
[351043877,1738306248338,-595.77,0.00019315,3]
[351043878,1738306248348,-500.0,0.00019315,3]
[351043879,1738306248358,-1589.24,0.00019315,3]
[351043880,1738306248367,-1903.2,0.00019315,3]